bitfinex-derivatives/quotes_BTCF0:USTF0_20250718
["timestamp","ask_amount","ask_price","bid_price","bid_amount"]
[1752862987316,0.21320068,117530.0,117520.0,0.88270599]
[1752862987511,0.309252,117520.0,117510.0,0.0233]
[1752862987719,0.2242056,117510.0,117500.0,0.2864675]
[1752862988015,1.09823205,117510.0,117500.0,0.68924]
[1752862988215,1.09923205,117510.0,117500.0,0.68924]
[1752862988417,1.09923205,117510.0,117500.0,0.8593801]
[1752862988715,1.09923205,117510.0,117500.0,0.8593401]
[1752862988912,1.09923205,117510.0,117500.0,0.8747901]
[1752862989118,1.09923205,117510.0,117500.0,0.70465]
[1752862989307,1.09923205,117510.0,117500.0,0.8747898]
[1752862989921,1.10023205,117510.0,117500.0,0.8747898]
[1752862990112,1.09198205,117510.0,117500.0,0.8827948]
[1752862990313,1.06947205,117510.0,117500.0,0.8827948]
[1752862990516,0.1721253,117510.0,117500.0,1.2435948]
[1752862990718,0.002,117510.0,117500.0,1.75678125]
[1752862991018,0.002,117510.0,117500.0,1.92698925]
[1752862991515,0.002,117510.0,117500.0,1.31162925]
[1752862991719,0.1711249,117510.0,117500.0,0.7984028]
[1752862992018,0.1711249,117510.0,117500.0,1.4147628]
[1752862992418,0.1711249,117510.0,117500.0,0.7994028]
[1752862992619,0.1711249,117510.0,117500.0,1.2445148]
[1752862992920,0.1711249,117510.0,117500.0,0.6291948]
[1752862993113,0.1711249,117510.0,117500.0,1.2445148]
[1752862993313,0.1701249,117510.0,117500.0,1.2445148]
[1752862993509,0.1701249,117510.0,117500.0,1.2465148]
[1752862994320,0.2591438,117520.0,117510.0,0.2593749]
[1752862994517,0.2551738,117520.0,117510.0,0.6201749]
[1752862994912,0.1701165,117520.0,117510.0,0.6201749]
[1752862996321,0.19303627,117520.0,117510.0,0.6201749]
[1752862996920,0.02292587,117520.0,117510.0,0.6201749]
[1752862997426,0.02292587,117520.0,117510.0,1.13340135]
[1752862998319,0.02292587,117520.0,117510.0,0.6201749]
[1752862998520,0.2551567,117530.0,117520.0,0.2014904]
[1752862998728,0.27759072,117530.0,117520.0,1.2352804]
[1752862998926,0.23506522,117530.0,117520.0,1.2352804]
[1752862999930,0.02243402,117530.0,117520.0,1.2352804]
[1752863000123,0.02343402,117530.0,117520.0,0.8744804]
[1752863000326,0.02343402,117530.0,117520.0,1.2352804]
[1752863000526,0.001,117530.0,117520.0,1.2352804]
[1752863000832,0.1275554,117550.0,117540.0,0.2593315]
[1752863000833,0.2551143,117550.0,117540.0,0.2593315]
[1752863001029,0.28152482,117550.0,117540.0,0.8744115]
[1752863001228,0.29751482,117550.0,117540.0,0.8744115]
[1752863001431,0.65831482,117550.0,117540.0,0.8744115]
[1752863002032,0.65931482,117550.0,117540.0,0.8744115]
[1752863002433,1.17254127,117550.0,117540.0,0.8744115]
[1752863003232,1.19605127,117550.0,117540.0,0.2593315]
[1752863003425,1.20530127,117550.0,117540.0,0.2434015]
[1752863003625,1.20530127,117550.0,117540.0,0.8583615]
[1752863004535,1.27327675,117550.0,117540.0,0.8583615]
[1752863005033,1.26402675,117550.0,117540.0,0.8742915]
[1752863005231,1.26898675,117550.0,117540.0,0.8742915]
[1752863005732,1.27513675,117550.0,117540.0,0.8742915]
[1752863005933,1.39823675,117550.0,117540.0,0.08925]
[1752863006135,1.39823675,117550.0,117540.0,0.05787]
[1752863006335,1.39823675,117550.0,117540.0,0.66149]
[1752863006934,1.39823675,117550.0,117540.0,0.8315715]
[1752863007136,1.27823675,117550.0,117540.0,0.8315715]
[1752863007536,1.27823675,117550.0,117540.0,0.8390215]
[1752863008227,0.7650103,117550.0,117540.0,0.8390215]
[1752863008535,1.27823675,117550.0,117540.0,0.8427915]
[1752863009236,1.27823675,117550.0,117540.0,0.8741715]
[1752863009737,1.27823675,117550.0,117540.0,0.8740915]
[1752863011832,1.27823675,117550.0,117540.0,0.2593315]
[1752863012037,0.7557603,117550.0,117540.0,0.8740115]
[1752863012337,0.88071675,117550.0,117540.0,0.8740115]
[1752863012535,0.2610843,117550.0,117540.0,1.2348115]
[1752863013435,0.2571143,117550.0,117540.0,1.2348115]
[1752863014038,0.2609843,117550.0,117540.0,1.2348115]
[1752863015237,0.2599843,117550.0,117540.0,1.2348115]
[1752863015439,0.2589843,117550.0,117540.0,1.2348115]
[1752863015638,0.2589843,117550.0,117540.0,1.2358115]
[1752863017444,0.2551143,117550.0,117540.0,1.2358115]
[1752863019039,0.2125952,117550.0,117540.0,1.2358115]
[1752863020046,0.68496041,117560.0,117550.0,0.2535174]
[1752863020242,0.68496041,117560.0,117550.0,0.2612574]
[1752863020243,0.70711932,117560.0,117550.0,0.2612574]
[1752863020646,1.23980577,117560.0,117550.0,0.2612574]
[1752863021045,0.65751621,117560.0,117550.0,0.2612574]
[1752863021842,0.65851621,117560.0,117550.0,0.2612574]
[1752863022349,0.66347621,117560.0,117550.0,0.8756174]
[1752863023249,0.62095991,117560.0,117550.0,0.8756174]
[1752863023551,0.62095991,117560.0,117550.0,0.8766174]
[1752863024153,0.593841,117560.0,117550.0,0.8766174]
[1752863024552,0.592841,117560.0,117550.0,0.8766174]
[1752863025354,0.597801,117560.0,117550.0,0.8765374]
[1752863025854,1.11102745,117560.0,117550.0,0.8765374]
[1752863026754,1.13353745,117560.0,117550.0,0.8765374]
[1752863027055,1.05806383,117560.0,117550.0,0.8765374]
[1752863027252,0.620311,117560.0,117550.0,0.8765374]
[1752863027556,1.05806383,117560.0,117550.0,0.8765374]
[1752863028753,1.05806383,117560.0,117550.0,0.88120768]
[1752863029753,1.05806383,117560.0,117550.0,0.26692768]
[1752863029950,1.50485666,117560.0,117550.0,0.71094028]
[1752863030152,1.61485666,117560.0,117550.0,0.67483028]
[1752863030454,1.63674221,117560.0,117550.0,0.66709028]
[1752863030654,1.63674221,117560.0,117550.0,0.04834]
[1752863030848,1.65580043,117560.0,117550.0,0.001]
[1752863031050,0.1944874,117550.0,117540.0,0.02353]
[1752863031249,1.13359023,117550.0,117540.0,0.02353]
[1752863031456,1.13842653,117550.0,117540.0,0.02353]
[1752863032354,1.13359023,117550.0,117540.0,0.02353]
[1752863033058,1.2090526,117550.0,117540.0,0.02353]
[1752863033259,1.2090526,117550.0,117540.0,0.02453]
[1752863035360,1.23093427,117550.0,117540.0,0.1946119]
[1752863035560,1.84485427,117550.0,117540.0,0.1946119]
[1752863035757,1.23093427,117550.0,117540.0,0.2184219]
[1752863035957,1.84481427,117550.0,117540.0,0.2261619]
[1752863036554,1.23093427,117550.0,117540.0,0.2261619]
[1752863036863,1.23093427,117550.0,117540.0,0.2426819]
[1752863037260,1.23093427,117550.0,117540.0,0.2622719]
[1752863040467,1.23093427,117550.0,117540.0,0.09219]
[1752863040662,1.23093427,117550.0,117540.0,0.2622717]
[1752863041265,1.23093427,117550.0,117540.0,0.09219]
[1752863041466,1.23093427,117550.0,117540.0,0.001]
[1752863042068,1.23093427,117550.0,117540.0,0.0248]
[1752863042660,0.1948215,117540.0,117530.0,0.05366]
[1752863042859,1.2091167,117540.0,117530.0,0.05366]
[1752863043671,1.2091167,117540.0,117530.0,0.05466]
[1752863044070,1.2091167,117540.0,117530.0,0.2247564]
[1752863044271,0.6959015,117540.0,117530.0,0.2613964]
[1752863044569,1.2060167,117540.0,117530.0,0.2613964]
[1752863044871,1.0960167,117540.0,117530.0,0.2613964]
[1752863045071,0.7352167,117540.0,117530.0,0.2613964]
[1752863045271,1.0960167,117540.0,117530.0,0.26611107]
[1752863045970,0.2173315,117540.0,117530.0,0.26611107]
[1752863046272,0.1700815,117540.0,117530.0,1.24255107]
[1752863047473,0.1700815,117540.0,117530.0,0.62891107]
[1752863047668,0.1700815,117540.0,117530.0,1.24251107]
[1752863047874,0.1862015,117540.0,117530.0,1.24251107]
[1752863048566,0.1862015,117540.0,117530.0,0.62891107]
[1752863048773,0.1862015,117540.0,117530.0,1.24247107]
[1752863054473,0.2125949,117550.0,117540.0,0.2603819]
[1752863054771,0.1700771,117550.0,117540.0,0.6211819]
[1752863054977,0.2125807,117560.0,117550.0,0.2603674]
[1752863055173,0.2125807,117560.0,117550.0,1.67236067]
[1752863055374,0.2125807,117560.0,117550.0,1.2345274]
[1752863056373,0.2135807,117560.0,117550.0,1.2345274]
[1752863056573,0.2297007,117560.0,117550.0,1.2345274]
[1752863056977,0.2307007,117560.0,117550.0,1.2345274]
[1752863057377,0.2145807,117560.0,117550.0,1.2345274]
[1752863057773,0.2135807,117560.0,117550.0,1.2345274]
[1752863058183,0.2125807,117560.0,117550.0,1.2345274]
[1752863058577,0.1700657,117560.0,117550.0,1.2345274]
[1752863060091,0.3173689,117570.0,117560.0,0.260353]
[1752863060293,0.2125625,117570.0,117560.0,0.260353]
[1752863060590,0.2125625,117570.0,117560.0,0.621153]
[1752863061192,0.2286825,117570.0,117560.0,0.621153]
[1752863061395,0.67017577,117570.0,117560.0,0.621153]
[1752863061593,0.67513577,117570.0,117560.0,0.621153]
[1752863061990,0.67513577,117570.0,117560.0,0.260353]
[1752863062190,0.69764577,117570.0,117560.0,0.260353]
[1752863062392,0.69764577,117570.0,117560.0,0.873433]
[1752863062393,1.17300577,117570.0,117560.0,0.873433]
[1752863065897,0.7351725,117570.0,117560.0,0.873433]
[1752863066097,0.7306125,117570.0,117560.0,0.873433]
[1752863066297,1.16844577,117570.0,117560.0,0.873433]
[1752863068601,0.6206125,117570.0,117560.0,0.873433]
[1752863068796,1.05844577,117570.0,117560.0,0.873433]
[1752863069401,1.03593577,117570.0,117560.0,0.873433]
[1752863069702,0.66651577,117570.0,117560.0,1.234233]
[1752863069901,0.2286825,117570.0,117560.0,1.234233]
[1752863070199,0.1700516,117570.0,117560.0,1.67206627]
[1752863070995,0.2711706,117580.0,117570.0,0.2608585]
[1752863071202,0.2550506,117580.0,117570.0,0.69869177]
[1752863072201,0.2550506,117580.0,117570.0,0.2608585]
[1752863072405,0.71296387,117580.0,117570.0,0.2608585]
[1752863072698,0.71892387,117580.0,117570.0,0.26547496]
[1752863072896,0.2810906,117580.0,117570.0,0.26547496]
[1752863073100,0.71892387,117580.0,117570.0,0.26547496]
[1752863073299,0.2810906,117580.0,117570.0,0.26547496]
[1752863073500,0.71892387,117580.0,117570.0,0.26547496]
[1752863074002,0.2810906,117580.0,117570.0,0.26547496]
[1752863074204,0.71892387,117580.0,117570.0,0.26547496]
[1752863074701,0.2570506,117580.0,117570.0,0.26547496]
[1752863074904,0.1720357,117580.0,117570.0,0.26547496]
[1752863075100,0.002,117580.0,117570.0,0.26547496]
[1752863075406,0.002,117580.0,117570.0,1.06410823]
[1752863076002,0.01911822,117600.0,117570.0,1.06410823]
[1752863076003,0.01911822,117600.0,117590.0,0.2608296]
[1752863076204,0.01911822,117600.0,117590.0,1.31114287]
[1752863076403,0.1699952,117600.0,117590.0,0.8733096]
[1752863077608,0.1699952,117600.0,117590.0,1.2341096]
[1752863077907,1.08086187,117610.0,117600.0,0.2533752]
[1752863078206,1.08086187,117610.0,117600.0,0.2608152]
[1752863078406,1.10337187,117610.0,117600.0,0.2608152]
[1752863078708,0.6430286,117610.0,117600.0,0.2608152]
[1752863079206,0.2397306,117610.0,117600.0,0.2618152]
[1752863079406,0.2124906,117610.0,117600.0,0.2618152]
[1752863079908,0.2280006,117610.0,117600.0,0.2618152]
[1752863080305,0.2280006,117610.0,117600.0,0.6226152]
[1752863080504,0.2740485,117620.0,117610.0,0.2608007]
[1752863080809,0.1699797,117620.0,117610.0,0.8730407]
[1752863081004,0.94861277,117630.0,117620.0,0.2607863]
[1752863081005,0.5732485,117630.0,117620.0,0.2607863]
[1752863081209,0.2124485,117630.0,117620.0,0.2607863]
[1752863081610,0.2124485,117630.0,117620.0,1.05941957]
[1752863081811,0.2124485,117630.0,117620.0,0.6215863]
[1752863082009,0.2124485,117630.0,117620.0,0.62439397]
[1752863082406,0.65228177,117630.0,117620.0,0.62439397]
[1752863082604,0.67952177,117630.0,117620.0,0.26359397]
[1752863083011,0.70203177,117630.0,117620.0,0.26359397]
[1752863083515,0.2641985,117630.0,117620.0,0.26359397]
[1752863083716,0.70403177,117630.0,117620.0,0.26359397]
[1752863083916,0.68152177,117630.0,117620.0,0.26359397]
[1752863084311,0.2436885,117630.0,117620.0,0.26359397]
[1752863084615,1.04232177,117630.0,117620.0,0.26359397]
[1752863084815,0.68152177,117630.0,117620.0,0.26359397]
[1752863085016,1.04232177,117630.0,117620.0,0.26359397]
[1752863085211,0.68152177,117630.0,117620.0,0.26359397]
[1752863087011,0.03124,117630.0,117620.0,0.26359397]
[1752863087317,0.004,117630.0,117620.0,1.67410724]
[1752863088517,0.004,117630.0,117620.0,1.23627397]
[1752863088819,0.004,117630.0,117620.0,1.67410724]
[1752863090919,0.002,117630.0,117620.0,1.67610724]
[1752863091421,0.71996407,117650.0,117640.0,0.205618]
[1752863091614,0.71996407,117650.0,117640.0,1.233238]
[1752863092115,0.2396479,117650.0,117640.0,1.233238]
[1752863092314,0.1971669,117650.0,117640.0,1.233238]
[1752863092620,0.63600017,117650.0,117640.0,1.233238]
[1752863092822,0.02008,117650.0,117640.0,1.233238]
[1752863093222,0.001,117650.0,117640.0,1.67107127]
[1752863093420,0.001,117650.0,117640.0,1.233238]
[1752863093621,0.001,117650.0,117640.0,1.67107127]
[1752863094815,0.001,117650.0,117640.0,2.03187127]
[1752863095413,0.001,117650.0,117640.0,1.594038]
[1752863095613,0.001,117650.0,117640.0,2.03187127]
[1752863099222,0.1698952,117670.0,117660.0,0.2055891]
[1752863099423,0.1698952,117670.0,117660.0,1.2329291]
[1752863099623,0.1698952,117670.0,117660.0,0.2607291]
[1752863099825,0.62323847,117670.0,117660.0,0.8721291]
[1752863100026,0.63496847,117670.0,117660.0,0.8721291]
[1752863100222,0.63496847,117670.0,117660.0,0.2607291]
[1752863100429,1.03177847,117670.0,117660.0,0.8721291]
[1752863100628,1.16177847,117670.0,117660.0,0.8720891]
[1752863100930,1.18552282,117670.0,117660.0,0.8562492]
[1752863101125,1.18552282,117670.0,117660.0,0.68634]
[1752863101327,0.2547392,117660.0,117650.0,0.03048]
[1752863101531,0.2547536,117650.0,117640.0,0.03048]
[1752863101727,0.1884481,117640.0,117630.0,0.1973738]
[1752863101927,1.60123464,117640.0,117630.0,0.05062]
[1752863102128,0.2281225,117630.0,117620.0,0.03397]
[1752863102326,1.17341577,117630.0,117620.0,0.03048]
[1752863102630,0.2547969,117620.0,117610.0,0.02319]
[1752863102827,1.17343017,117620.0,117610.0,0.63451]
[1752863103031,1.17343017,117620.0,117610.0,0.2039514]
[1752863103422,1.17343017,117620.0,117610.0,0.2607114]
[1752863103623,0.6155969,117620.0,117610.0,0.26359752]
[1752863103930,1.04928017,117620.0,117610.0,0.26759752]
[1752863104232,1.11343017,117620.0,117610.0,0.26759752]
[1752863104430,1.11343017,117620.0,117610.0,0.26359752]
[1752863104932,0.50148,117620.0,117610.0,0.26359752]
[1752863105133,0.14068,117620.0,117610.0,0.26359752]
[1752863105433,0.310647,117620.0,117610.0,0.2607114]
[1752863106928,0.310647,117620.0,117610.0,0.26351641]
[1752863107331,0.14068,117620.0,117610.0,0.26351641]
[1752863107534,0.310647,117620.0,117610.0,0.87487641]
[1752863107836,0.14068,117620.0,117610.0,0.87487641]
[1752863108035,0.05817,117620.0,117610.0,0.87487641]
[1752863109737,0.05817,117620.0,117610.0,0.87587641]
[1752863109934,0.03375,117620.0,117610.0,0.87587641]
[1752863110237,0.03375,117620.0,117610.0,0.26451641]
[1752863110537,0.03375,117620.0,117610.0,0.87687641]
[1752863110937,0.203717,117620.0,117610.0,0.87687641]
[1752863111238,0.03375,117620.0,117610.0,0.87687641]
[1752863111638,0.203717,117620.0,117610.0,0.87687641]
[1752863112039,0.228137,117620.0,117610.0,0.87687641]
[1752863112239,0.250647,117620.0,117610.0,0.87687641]
[1752863114336,0.250647,117620.0,117610.0,0.26551641]
[1752863114542,0.250647,117620.0,117610.0,0.87687641]
[1752863116539,0.611447,117620.0,117610.0,0.09553501]
[1752863116740,0.2153759,117600.0,117590.0,0.05486]
[1752863116945,1.84943326,117600.0,117590.0,0.2248703]
[1752863117145,1.84943326,117600.0,117590.0,0.05486]
[1752863117646,1.84943326,117600.0,117560.0,1.014672]
[1752863117647,0.2281948,117580.0,117570.0,0.2982105]
[1752863117846,0.2507048,117580.0,117570.0,0.2982105]
[1752863118143,0.2507048,117580.0,117570.0,0.3457805]
[1752863119347,0.2281948,117580.0,117570.0,0.3457805]
[1752863119846,0.2281948,117580.0,117570.0,0.34865545]
[1752863123348,0.03375,117580.0,117570.0,0.34865545]
[1752863123552,0.2037748,117580.0,117570.0,0.34865545]
[1752863124855,0.03375,117580.0,117570.0,0.34865545]
[1752863125659,0.2037748,117580.0,117570.0,0.34865545]
[1752863127360,0.03375,117580.0,117570.0,0.34865545]
[1752863127756,0.2037747,117580.0,117570.0,0.34865545]
[1752863128154,0.01524,117580.0,117570.0,0.34865545]
[1752863128458,0.1852502,117590.0,117580.0,0.2607547]
[1752863128962,0.63783271,117590.0,117580.0,0.2607547]
[1752863129260,0.64131271,117590.0,117580.0,0.2607547]
[1752863129460,0.66573271,117590.0,117580.0,0.2627547]
[1752863130361,0.66573271,117590.0,117580.0,0.2637547]
[1752863130553,0.79824271,117590.0,117580.0,0.2637547]
[1752863130857,1.16311271,117590.0,117580.0,0.2637547]
[1752863131161,1.16311271,117590.0,117580.0,0.2278847]
[1752863131461,1.16311271,117590.0,117580.0,0.2624347]
[1752863131662,0.80231271,117590.0,117580.0,0.2624347]
[1752863131857,0.66573271,117590.0,117580.0,0.2614347]
[1752863132056,1.25275271,117590.0,117580.0,0.2614347]
[1752863132258,0.8152002,117590.0,117580.0,0.2614347]
[1752863132661,0.8152002,117590.0,117580.0,0.2594347]
[1752863132961,1.25275271,117590.0,117580.0,0.2594347]
[1752863133162,0.2037602,117590.0,117580.0,0.2594347]
[1752863133563,0.68850271,117590.0,117580.0,0.2594347]
[1752863133756,0.68850271,117590.0,117580.0,0.32884505]
[1752863133757,0.81850271,117590.0,117580.0,0.32884505]
[1752863134062,0.82254271,117590.0,117580.0,0.32884505]
[1752863134360,0.82154271,117590.0,117580.0,0.32884505]
[1752863134560,0.82154271,117590.0,117580.0,0.2594347]
[1752863136667,0.81750271,117590.0,117580.0,0.2594347]
[1752863136869,0.68750271,117590.0,117580.0,0.2594347]
[1752863138565,0.64131271,117590.0,117580.0,0.2594347]
[1752863138767,0.131185,117610.0,117590.0,0.0893]
[1752863138968,0.2863502,117610.0,117600.0,0.8706957]
[1752863139268,1.13437271,117610.0,117600.0,0.8706957]
[1752863139470,1.13841271,117610.0,117600.0,0.8706957]
[1752863139968,1.24941271,117610.0,117600.0,0.7007]
[1752863140170,1.24941271,117610.0,117600.0,0.6856]
[1752863140364,1.24841271,117610.0,117600.0,0.0742]
[1752863140561,1.24941271,117610.0,117600.0,0.0742]
[1752863141066,0.2550658,117600.0,117590.0,0.9405617]
[1752863141263,1.16341831,117600.0,117590.0,0.3292017]
[1752863141666,1.16341831,117600.0,117590.0,0.3443017]
[1752863142970,1.23853684,117600.0,117590.0,0.3443017]
[1752863143873,0.87773684,117600.0,117590.0,0.3443017]
[1752863144471,1.23853684,117600.0,117590.0,0.3443017]
[1752863144972,0.87773684,117600.0,117590.0,0.3443017]
[1752863145470,1.23853684,117600.0,117590.0,0.3443017]
[1752863145770,0.7258658,117600.0,117590.0,0.3443017]
[1752863145972,0.3650658,117600.0,117590.0,0.3443017]
[1752863146368,0.2510258,117600.0,117590.0,0.3443017]
[1752863148168,0.08103,117600.0,117590.0,0.7051017]
[1752863148371,0.42235572,117620.0,117610.0,0.2592813]
[1752863148372,0.5920706,117620.0,117610.0,0.2592813]
[1752863148578,0.5495768,117620.0,117610.0,0.8705213]
[1752863148876,0.1699668,117620.0,117610.0,0.8705213]
[1752863149075,0.80740877,117630.0,117620.0,0.2045168]
[1752863149275,0.80740877,117630.0,117620.0,0.2592668]
[1752863149476,0.91740877,117630.0,117620.0,0.2592668]
[1752863149676,1.43007981,117630.0,117620.0,0.2592668]
[1752863149875,1.43411981,117630.0,117620.0,0.03224]
[1752863150079,1.43411981,117630.0,117620.0,0.02498]
[1752863150674,0.2048068,117620.0,117610.0,0.02698]
[1752863150878,0.03484,117610.0,117590.0,0.02977]
[1752863151082,1.12853674,117600.0,117590.0,0.05475]
[1752863151378,1.23853674,117600.0,117590.0,0.05475]
[1752863152282,1.24053674,117600.0,117590.0,0.05475]
[1752863152977,0.1734902,117590.0,117580.0,0.03326]
[1752863153179,0.87775124,117590.0,117580.0,0.6694]
[1752863153781,0.87775124,117590.0,117580.0,0.68536]
[1752863153979,1.23855124,117590.0,117580.0,0.68536]
[1752863154179,1.23955124,117590.0,117580.0,0.68536]
[1752863154380,1.23955124,117590.0,117580.0,0.0742]
[1752863154673,0.87875124,117590.0,117580.0,0.0742]
[1752863154880,1.23955124,117590.0,117580.0,0.0893]
[1752863155580,1.24255124,117590.0,117580.0,0.0893]
[1752863155976,0.88175124,117590.0,117580.0,0.0893]
[1752863156277,0.7298802,117590.0,117580.0,0.2593247]
[1752863156478,1.24255124,117590.0,117580.0,0.2593247]
[1752863156778,0.88175124,117590.0,117580.0,0.2593247]
[1752863157078,0.6158402,117590.0,117580.0,0.2593247]
[1752863157874,0.2550402,117590.0,117580.0,0.2593247]
[1752863162375,0.6196602,117590.0,117580.0,0.2593247]
[1752863163982,1.13233124,117590.0,117580.0,0.2593247]
[1752863164178,0.6196602,117590.0,117580.0,0.2593247]
[1752863164580,1.13233124,117590.0,117580.0,0.2593247]
[1752863165082,0.6196602,117590.0,117580.0,0.2593247]
[1752863165383,0.6158402,117590.0,117580.0,0.2593247]
[1752863165783,1.13233124,117590.0,117580.0,0.2593247]
[1752863166382,1.24233124,117590.0,117580.0,0.2593247]
[1752863169083,1.16718701,117590.0,117580.0,0.2593247]
[1752863170084,0.7296602,117590.0,117580.0,0.2593247]
[1752863170286,1.16718701,117590.0,117580.0,0.2593247]
[1752863171482,0.7296602,117590.0,117580.0,0.2593247]
[1752863171683,0.69638701,117590.0,117580.0,0.2593247]
[1752863172183,0.69256701,117590.0,117580.0,0.2593247]
[1752863172586,0.68856701,117590.0,117580.0,0.2593247]
[1752863172784,0.68956701,117590.0,117580.0,0.2593247]
[1752863175183,1.05418701,117590.0,117580.0,0.2593247]
[1752863175481,0.69338701,117590.0,117580.0,0.2593247]
[1752863175984,1.05418701,117590.0,117580.0,0.2593247]
[1752863176489,0.69338701,117590.0,117580.0,0.2593247]
[1752863177780,1.05418701,117590.0,117580.0,0.2593247]
[1752863179195,0.69338701,117590.0,117580.0,0.2593247]
[1752863179492,1.05418701,117590.0,117580.0,0.2593247]
[1752863180582,1.05418701,117590.0,117580.0,0.33549399]
[1752863181889,0.2558602,117590.0,117580.0,0.33549399]
[1752863182185,0.69338701,117590.0,117580.0,0.33549399]
[1752863182387,0.68956701,117590.0,117580.0,0.33549399]
[1752863182782,0.2520402,117590.0,117580.0,0.33549399]
[1752863182984,0.001,117590.0,117580.0,0.7730208]
[1752863183287,0.001,117590.0,117580.0,1.1338208]
[1752863183682,0.001,117590.0,117580.0,1.05765151]
[1752863183878,0.1710102,117590.0,117580.0,1.05765151]
[1752863184083,0.1710102,117590.0,117580.0,0.8700447]
[1752863184084,0.2069302,117590.0,117580.0,0.8700447]
[1752863184284,0.2287002,117590.0,117580.0,0.8700447]
[1752863184490,0.2059302,117590.0,117580.0,0.8715147]
[1752863186089,0.2024002,117590.0,117580.0,0.8715147]
[1752863186891,0.2024002,117590.0,117580.0,1.2323147]
[1752863188091,0.1860802,117590.0,117580.0,1.65428151]
[1752863189391,0.1700102,117590.0,117580.0,1.65428151]
[1752863191082,0.2529602,117590.0,117580.0,1.2167547]
[1752863191285,0.2529602,117590.0,117580.0,1.2932523]
[1752863191481,0.2304502,117590.0,117580.0,1.2932523]
[1752863191681,0.2059302,117590.0,117580.0,1.2932523]
[1752863193893,0.2024002,117590.0,117580.0,1.73077911]
[1752863194187,0.1700102,117590.0,117580.0,1.65428151]
[1752863196396,0.1700102,117590.0,117580.0,1.65400151]
[1752863196589,0.3135699,117600.0,117590.0,0.2303602]
[1752863196788,0.3135699,117600.0,117590.0,0.2624102]
[1752863196987,0.3291299,117600.0,117590.0,0.2624102]
[1752863197195,0.3325299,117600.0,117590.0,0.2624102]
[1752863197697,0.3570499,117600.0,117590.0,0.8728102]
[1752863198091,0.64255501,117600.0,117590.0,0.8728102]
[1752863198287,1.05331631,117610.0,117600.0,0.1699958]
[1752863198598,0.6507875,117620.0,117610.0,0.2623813]
[1752863198897,0.1855393,117620.0,117610.0,1.31026811]
[1752863199289,0.1699793,117620.0,117610.0,1.31026811]
[1752863199493,0.1699793,117620.0,117610.0,0.8727413]
[1752863199695,0.1699793,117620.0,117610.0,0.87663967]
[1752863200197,0.2015993,117620.0,117610.0,0.87663967]
[1752863200397,0.2015993,117620.0,117610.0,0.87763967]
[1752863200598,0.2295193,117620.0,117610.0,0.87763967]
[1752863200798,0.68955611,117620.0,117610.0,0.87763967]
[1752863201000,0.80955611,117620.0,117610.0,0.87763967]
[1752863201302,0.81311611,117620.0,117610.0,0.87763967]
[1752863201517,0.81311611,117620.0,117610.0,0.87863967]
[1752863202006,0.81311611,117620.0,117610.0,0.87763967]
[1752863202207,0.80955611,117620.0,117610.0,0.87763967]
[1752863202912,0.80955611,117620.0,117610.0,0.87663967]
[1752863206212,1.17035611,117620.0,117610.0,0.87639967]
[1752863206512,0.80955611,117620.0,117610.0,0.87639967]
[1752863209810,1.17035611,117620.0,117610.0,0.87639967]
[1752863212319,1.17391611,117620.0,117610.0,0.09629837]
[1752863212513,1.17391611,117620.0,117610.0,0.70625837]
[1752863212712,1.17391611,117620.0,117610.0,0.87623967]
[1752863213110,0.7363893,117620.0,117610.0,0.87623967]
[1752863213316,0.80955611,117620.0,117610.0,0.87623967]
[1752863213517,0.3720293,117620.0,117610.0,0.87623967]
[1752863213813,0.3750293,117620.0,117610.0,0.87623967]
[1752863214020,0.81255611,117620.0,117610.0,0.87623967]
[1752863214214,0.3750293,117620.0,117610.0,0.87623967]
[1752863214420,1.17335611,117620.0,117610.0,0.87623967]
[1752863215421,0.81255611,117620.0,117610.0,0.87623967]
[1752863216423,0.67004611,117620.0,117610.0,0.87623967]
[1752863219427,0.66804611,117620.0,117610.0,0.87623967]
[1752863220824,1.05035611,117620.0,117610.0,0.87623967]
[1752863221319,0.64252611,117620.0,117610.0,0.87623967]
[1752863221525,0.33858707,117630.0,117620.0,0.2612169]
[1752863221722,0.185438,117640.0,117630.0,0.2612024]
[1752863221921,0.66645631,117650.0,117640.0,0.261188]
[1752863222225,0.69241631,117650.0,117640.0,0.261188]
[1752863222419,0.79165312,117650.0,117640.0,0.261188]
[1752863222621,1.21245312,117650.0,117640.0,0.09125]
[1752863222825,1.28166684,117650.0,117640.0,0.261188]
[1752863223522,1.28166684,117650.0,117640.0,0.09125]
[1752863223727,1.28166684,117650.0,117640.0,0.261188]
[1752863223928,1.28497684,117650.0,117640.0,0.09125]
[1752863224230,1.28597684,117650.0,117640.0,0.70085]
[1752863224431,1.28597684,117650.0,117640.0,0.870788]
[1752863224933,1.28597684,117650.0,117640.0,0.70085]
[1752863225625,1.28597684,117650.0,117640.0,0.09125]
[1752863225822,1.28597684,117650.0,117640.0,0.870748]
[1752863226219,1.28597684,117650.0,117640.0,0.70077]
[1752863226424,1.30742212,117650.0,117640.0,0.870708]
[1752863226724,1.28597684,117650.0,117640.0,0.870708]
[1752863227226,1.28797684,117650.0,117640.0,0.870708]
[1752863227428,1.30942901,117650.0,117640.0,0.870708]
[1752863228530,1.30611901,117650.0,117640.0,0.870708]
[1752863229728,1.24611901,117650.0,117640.0,0.870708]
[1752863230430,1.22466684,117650.0,117640.0,0.870708]
[1752863231026,1.22266684,117650.0,117640.0,0.870708]
[1752863231232,1.36311544,117650.0,117640.0,0.09125]
[1752863231432,1.34166684,117650.0,117640.0,0.870508]
[1752863232337,0.90414003,117650.0,117640.0,0.870508]
[1752863232634,1.34266684,117650.0,117640.0,0.870508]
[1752863233235,1.34597684,117650.0,117640.0,0.870468]
[1752863233534,1.34797684,117650.0,117640.0,0.870468]
[1752863233834,1.34366684,117650.0,117640.0,0.870468]
[1752863234036,1.34166684,117650.0,117640.0,0.870468]
[1752863235039,1.30696684,117650.0,117640.0,0.830618]
[1752863235242,1.32947684,117650.0,117640.0,0.870468]
[1752863235439,1.32616684,117650.0,117640.0,0.870468]
[1752863235941,1.32296043,117650.0,117640.0,0.870468]
[1752863236141,1.32296043,117650.0,117640.0,0.870388]
[1752863236541,1.32296043,117650.0,117640.0,0.870348]
[1752863238645,1.30746043,117650.0,117640.0,0.870308]
[1752863241643,1.32296043,117650.0,117640.0,0.870308]
[1752863242843,1.32296043,117650.0,117640.0,0.87020754]
[1752863245235,0.88543362,117650.0,117640.0,0.87020754]
[1752863245440,1.32296043,117650.0,117640.0,0.87020754]
[1752863245744,1.20296043,117650.0,117640.0,0.87020754]
[1752863246244,0.76543362,117650.0,117640.0,0.87020754]
[1752863246544,1.20296043,117650.0,117640.0,0.87020754]
[1752863247347,0.72294962,117650.0,117640.0,0.87020754]
[1752863247548,0.68046722,117650.0,117640.0,0.87020754]
[1752863247741,0.65795722,117650.0,117640.0,0.87020754]
[1752863247937,1.09548403,117650.0,117640.0,0.87020754]
[1752863248142,1.11799403,117650.0,117640.0,0.87020754]